fUST/lending_fUST_20250901
["ID","MTS","AMOUNT","RATE_DAILY","PERIOD"]
[382699934,1756711860844,-986.566383,0.00014286,2]
[382699935,1756711860853,-986.566383,0.00014286,2]
[382699936,1756711860862,-151.0,0.00014286,2]
[382699937,1756711860871,-236.811188,0.00014286,2]
[382699938,1756711860881,-236.811188,0.00014286,2]
[382699939,1756711860891,-236.811188,0.00014286,2]
[382699940,1756711860900,-236.811188,0.00014286,2]
[382699941,1756711860914,-270.606278,0.00014286,2]
[382699942,1756711860923,-270.606278,0.00014286,2]
[382699943,1756711860932,-270.606278,0.00014286,2]
[382699944,1756711860942,-270.606278,0.00014286,2]
[382699945,1756711860952,-480.0,0.00014287,2]
[382699946,1756711860962,-480.0,0.00014287,2]
[382699947,1756711860974,-480.0,0.00014287,2]
[382699948,1756711860985,-151.0,0.00014287,2]
[382699949,1756711860995,-151.0,0.00014287,2]
[382699950,1756711861005,-480.0,0.00014287,2]
[382699951,1756711861015,-512.63,0.00014287,2]
[382699952,1756711861026,-480.0,0.00014287,2]
[382699953,1756711861038,-480.0,0.00014287,2]
[382699954,1756711861049,-1076.16,0.00014287,2]
[382699955,1756711861058,-596.44,0.00014287,2]
[382699956,1756711861069,-1586.01,0.00014287,2]
[382699957,1756711861079,-1586.01,0.00014287,2]
[382699958,1756711861089,-480.0,0.00014287,2]
[382699959,1756711861098,-480.0,0.00014287,2]
[382699960,1756711861108,-151.0,0.00014287,2]
[382699961,1756711861117,-480.0,0.00014287,2]
[382699962,1756711861127,-151.0,0.00014287,2]
[382699963,1756711861137,-530.45,0.00014287,2]
[382699964,1756711861146,-151.0,0.00014287,2]
[382699965,1756711861157,-151.0,0.00014287,2]
[382699966,1756711861167,-151.0,0.00014287,2]
[382699967,1756711861176,-480.0,0.00014287,2]
[382699968,1756711861185,-151.0,0.00014287,2]
[382699969,1756711861195,-480.0,0.00014287,2]
[382699970,1756711861205,-151.0,0.00014287,2]
[382699971,1756711861215,-151.0,0.00014287,2]
[382699972,1756711861226,-151.0,0.00014287,2]
[382699973,1756711861240,-423.176195,0.00014287,2]
[382699974,1756711861251,-423.176195,0.00014287,2]
[382699975,1756711861261,-423.176195,0.00014287,2]
[382699976,1756711861273,-423.176195,0.00014287,2]
[382699977,1756711861284,-151.0,0.00014287,2]
[382699978,1756711861293,-357.592728,0.00014287,2]
[382699979,1756711861303,-357.592728,0.00014287,2]
[382699980,1756711861314,-151.0,0.00014287,2]
[382699981,1756711861323,-357.592728,0.00014287,2]
[382699982,1756711861334,-357.592728,0.00014287,2]
[382699983,1756711861344,-1283.75408,0.00014287,2]
[382699984,1756711861355,-151.0,0.00014287,2]
[382699985,1756711861365,-151.0,0.00014287,2]
[382699986,1756711861376,-151.0,0.00014287,2]
[382699987,1756711861527,-151.0,0.00014287,2]
[382699988,1756711861553,-151.0,0.00014287,2]
[382699989,1756711861563,-151.0,0.00014287,2]
[382699990,1756711861572,-151.0,0.00014287,2]
[382699991,1756711861582,-253.837368,0.00014287,2]
[382699992,1756711861591,-1586.01,0.00014288,2]
[382699993,1756711861601,-1586.01,0.00014288,2]
[382699994,1756711861611,-26988.75251086,0.00014337,2]
[382699995,1756711861621,-287.090103,0.00014337,2]
[382699996,1756711861630,-287.090103,0.00014337,2]
[382699997,1756711861640,-287.090103,0.00014337,2]
[382699998,1756711861650,-287.090103,0.00014337,2]
[382699999,1756711861662,-151.0,0.00014337,2]
[382700000,1756711861672,-151.0,0.00014337,2]
[382700001,1756711861681,-151.0,0.00014337,2]
[382700002,1756711861691,-153.321616,0.00014337,2]
[382700003,1756711861701,-151.0,0.00014337,2]
[382700004,1756711861711,-295.324123,0.00014337,2]
[382700005,1756711861721,-295.324123,0.00014337,2]
[382700006,1756711861731,-295.324123,0.00014337,2]
[382700007,1756711861742,-295.324123,0.00014337,2]
[382700008,1756711861752,-160.0,0.00014366,2]
[382700009,1756711861764,-417.15472785,0.00014366,2]
[382700010,1756711861773,-425.82406011,0.00014366,2]
[382700011,1756711861783,-160.0,0.00014366,2]
[382700012,1756711861792,-160.0,0.00014366,2]
[382700013,1756711861801,-530.14184084,0.00014366,2]
[382700014,1756711861811,-160.0,0.00014366,2]
[382700015,1756711861821,-160.0,0.00014366,2]
[382700016,1756711861831,-160.0,0.00014366,2]
[382700017,1756711861840,-232.83393981,0.00014366,2]
[382700018,1756711861849,-160.0,0.00014366,2]
[382700019,1756711861859,-217.44302069,0.00014366,2]
[382700020,1756711861868,-160.0,0.00014366,2]
[382700021,1756711861878,-846.10922732,0.00014366,2]
[382700022,1756711861888,-160.0,0.00014366,2]
[382700023,1756711861897,-11366.76240249,0.00014366,2]
[382700024,1756711861907,-1586.01,0.00014375,2]
[382700025,1756711861917,-330.0,0.00014377,2]
[382700026,1756711861926,-151.0,0.00014397,2]
[382700027,1756711861935,-184.362176,0.00014397,2]
[382700028,1756711861944,-184.362176,0.00014397,2]
[382700029,1756711861955,-184.362176,0.00014397,2]
[382700030,1756711861965,-184.362176,0.00014397,2]
[382700031,1756711861980,-161.357211,0.00014397,2]
[382700032,1756711861989,-161.357211,0.00014397,2]
[382700033,1756711861999,-153.354446,0.00014397,2]
[382700034,1756711862008,-151.0,0.00014397,2]
[382700035,1756711862017,-161.357211,0.00014397,2]
[382700036,1756711862027,-161.357211,0.00014397,2]
[382700037,1756711862036,-151.0,0.00014397,2]
[382700038,1756711862046,-160.550358,0.00014397,2]
[382700039,1756711862055,-151.0,0.00014397,2]
[382700040,1756711862064,-151.0,0.00014397,2]
[382700041,1756711862073,-151.0,0.00014397,2]
[382700042,1756711862082,-191.593175,0.00014397,2]
[382700043,1756711862091,-191.593175,0.00014397,2]
[382700044,1756711862100,-191.593175,0.00014397,2]
[382700045,1756711862109,-191.593175,0.00014397,2]
[382700046,1756711862119,-191.938504,0.00014397,2]
[382700047,1756711862128,-237.151202,0.00014397,2]
[382700048,1756711862137,-151.0,0.00014397,2]
[382700049,1756711862147,-151.0,0.00014397,2]
[382700050,1756711862159,-151.0,0.00014397,2]
[382700051,1756711862168,-284.300809,0.00014397,2]
[382700052,1756711862177,-287.863363,0.00014397,2]
[382700053,1756711862187,-287.863363,0.00014397,2]
[382700054,1756711862196,-287.863363,0.00014397,2]
[382700055,1756711862206,-287.863363,0.00014397,2]
[382700056,1756711862215,-158.244102,0.00014397,2]
[382700057,1756711862225,-151.0,0.00014397,2]
[382700058,1756711862236,-158.244102,0.00014397,2]
[382700059,1756711862246,-225.602619,0.00014397,2]
[382700060,1756711862255,-158.244102,0.00014397,2]
[382700061,1756711862265,-158.244102,0.00014397,2]
[382700062,1756711862275,-151.0,0.00014397,2]
[382700063,1756711862284,-986.566383,0.00014397,2]
[382700064,1756711862294,-986.566383,0.00014397,2]
[382700065,1756711862304,-151.0,0.00014397,2]
[382700066,1756711862315,-986.566383,0.00014397,2]
[382700067,1756711862324,-986.566383,0.00014397,2]
[382700068,1756711862334,-151.0,0.00014397,2]
[382700069,1756711862343,-270.606278,0.00014397,2]
[382700070,1756711862352,-270.606278,0.00014397,2]
[382700071,1756711862362,-270.606278,0.00014397,2]
[382700072,1756711862371,-270.606278,0.00014397,2]
[382700073,1756711862380,-330.0,0.00014421,2]
[382700074,1756711862389,-330.0,0.00014468,2]
[382700075,1756711862399,-330.0,0.00014512,2]
[382700076,1756711862410,-330.0,0.00014547,2]
[382700077,1756711862421,-888.02,0.00014556,2]
[382700078,1756711862431,-480.0,0.00014556,2]
[382700079,1756711862441,-528.4,0.00014556,2]
[382700080,1756711862451,-480.0,0.00014556,2]
[382700081,1756711862460,-480.0,0.00014556,2]
[382700082,1756711862470,-480.0,0.00014556,2]
[382700083,1756711862480,-1796.42,0.00014556,2]
[382700084,1756711862491,-480.0,0.00014556,2]
[382700085,1756711862501,-480.0,0.00014556,2]
[382700086,1756711862510,-992.31,0.00014556,2]
[382700087,1756711862520,-480.0,0.00014556,2]
[382700088,1756711862532,-874.34,0.00014556,2]
[382700089,1756711862542,-750.7,0.00014556,2]
[382700090,1756711862551,-1043.32,0.00014556,2]
[382700091,1756711862564,-480.0,0.00014556,2]
[382700092,1756711862574,-480.0,0.00014556,2]
[382700093,1756711862583,-504.79,0.00014556,2]
[382700094,1756711862592,-480.0,0.00014556,2]
[382700095,1756711862601,-1506.8,0.00014556,2]
[382700096,1756711862611,-558.2,0.00014556,2]
[382700097,1756711862620,-480.0,0.00014556,2]
[382700098,1756711862629,-480.0,0.00014556,2]
[382700099,1756711862639,-952.89,0.00014556,2]
[382700100,1756711862650,-480.0,0.00014556,2]
[382700101,1756711862659,-480.0,0.00014556,2]
[382700102,1756711862669,-712.85,0.00014557,2]
[382700103,1756711862678,-480.0,0.00014557,2]
[382700104,1756711862688,-480.0,0.00014557,2]
[382700105,1756711862697,-480.0,0.00014557,2]
[382700106,1756711862707,-480.0,0.00014557,2]
[382700107,1756711862716,-480.0,0.00014557,2]
[382700108,1756711862726,-480.0,0.00014557,2]
[382700109,1756711862736,-480.0,0.00014557,2]
[382700110,1756711862745,-480.0,0.00014557,2]
[382700111,1756711862755,-480.0,0.00014557,2]
[382700112,1756711862765,-279.24686759,0.00014557,2]
[382700113,1756711862774,-480.0,0.00014557,2]
[382700114,1756711862784,-480.0,0.00014557,2]
[382700115,1756711862794,-611.02,0.00014557,2]
[382700116,1756711862804,-484.82,0.00014557,2]
[382700117,1756711862813,-756.6,0.00014557,2]
[382700118,1756711862823,-805.05,0.00014557,2]
[382700119,1756711862832,-519.32,0.00014557,2]
[382700120,1756711862842,-480.0,0.00014557,2]
[382700121,1756711862851,-480.0,0.00014557,2]
[382700122,1756711862860,-480.0,0.00014557,2]
[382700123,1756711862869,-480.0,0.00014557,2]
[382700124,1756711862879,-480.0,0.00014557,2]
[382700125,1756711862888,-480.0,0.00014557,2]
[382700126,1756711862898,-480.0,0.00014557,2]
[382700127,1756711862909,-151.0,0.00014557,2]
[382700128,1756711862918,-151.0,0.00014557,2]
[382700129,1756711862928,-480.0,0.00014557,2]
[382700130,1756711862937,-480.0,0.00014557,2]
[382700131,1756711862947,-480.0,0.00014557,2]
[382700132,1756711862956,-480.0,0.00014557,2]
[382700133,1756711862966,-749.52,0.00014557,2]
[382700134,1756711862975,-480.0,0.00014557,2]
[382700135,1756711862985,-3251.74,0.00014557,2]
[382700136,1756711862995,-526.31,0.00014557,2]
[382700137,1756711863004,-151.0,0.00014557,2]
[382700138,1756711863014,-209.847823,0.00014557,2]
[382700139,1756711863024,-573.68,0.00014557,2]
[382700140,1756711863033,-151.0,0.00014557,2]
[382700141,1756711863043,-209.847823,0.00014557,2]
[382700142,1756711863053,-209.847823,0.00014557,2]
[382700143,1756711863063,-209.847823,0.00014557,2]
[382700144,1756711863072,-405.979357,0.00014557,2]
[382700145,1756711863082,-681.49,0.00014557,2]
[382700146,1756711863092,-405.979357,0.00014557,2]
[382700147,1756711863101,-405.979357,0.00014557,2]
[382700148,1756711863110,-405.979357,0.00014557,2]
[382700149,1756711863120,-480.0,0.00014557,2]
[382700150,1756711863130,-1196.68,0.00014557,2]
[382700151,1756711863139,-626.38,0.00014557,2]
[382700152,1756711863149,-480.0,0.00014557,2]
[382700153,1756711863160,-480.0,0.00014557,2]
[382700154,1756711863170,-236.811188,0.00014557,2]
[382700155,1756711863179,-480.0,0.00014557,2]
[382700156,1756711863189,-236.811188,0.00014557,2]
[382700157,1756711863199,-480.0,0.00014557,2]
[382700158,1756711863209,-803.81,0.00014557,2]
[382700159,1756711863218,-236.811188,0.00014557,2]
[382700160,1756711863228,-659.75,0.00014557,2]
[382700161,1756711863238,-236.811188,0.00014557,2]
[382700162,1756711863248,-724.49,0.00014557,2]
[382700163,1756711863257,-656.18,0.00014557,2]
[382700164,1756711863267,-480.0,0.00014557,2]
[382700165,1756711863277,-480.0,0.00014557,2]
[382700166,1756711863286,-480.0,0.00014557,2]
[382700167,1756711863296,-480.0,0.00014557,2]
[382700168,1756711863305,-550.11,0.00014557,2]
[382700169,1756711863314,-480.0,0.00014557,2]
[382700170,1756711863324,-748.32,0.00014557,2]
[382700171,1756711863334,-480.0,0.00014557,2]
[382700172,1756711863344,-748.38,0.00014557,2]
[382700173,1756711863353,-620.32,0.00014557,2]
[382700174,1756711863363,-3906.14,0.00014557,2]
[382700175,1756711863373,-480.0,0.00014557,2]
[382700176,1756711863382,-480.0,0.00014557,2]
[382700177,1756711863392,-278.90998138,0.00014557,2]
[382700178,1756711863401,-537.67,0.00014557,2]
[382700179,1756711863413,-1612.04,0.00014557,2]
[382700180,1756711863423,-4468.34,0.00014557,2]
[382700181,1756711863433,-480.0,0.00014557,2]
[382700182,1756711863443,-1065.06,0.00014557,2]
[382700183,1756711863454,-480.0,0.00014557,2]
[382700184,1756711863463,-491.95,0.00014557,2]
[382700185,1756711863473,-480.0,0.00014557,2]
[382700186,1756711863484,-963.3,0.00014557,2]
[382700187,1756711863495,-582.85,0.00014557,2]
[382700188,1756711863504,-480.0,0.00014557,2]
[382700189,1756711863514,-490.43,0.00014557,2]
[382700190,1756711863523,-480.0,0.00014557,2]
[382700191,1756711863533,-480.0,0.00014557,2]
[382700192,1756711863543,-480.0,0.00014557,2]
[382700193,1756711863553,-151.0,0.00014557,2]
[382700194,1756711863563,-151.0,0.00014557,2]
[382700195,1756711863572,-277.52443,0.00014557,2]
[382700196,1756711863582,-737.17,0.00014557,2]
[382700197,1756711863591,-809.35,0.00014557,2]
[382700198,1756711863600,-480.0,0.00014557,2]
[382700199,1756711863610,-423.176195,0.00014557,2]
[382700200,1756711863619,-423.176195,0.00014557,2]
[382700201,1756711863629,-480.0,0.00014557,2]
[382700202,1756711863639,-480.0,0.00014557,2]
[382700203,1756711863648,-423.176195,0.00014557,2]
[382700204,1756711863659,-423.176188,0.00014557,2]
[382700205,1756711863669,-480.0,0.00014557,2]
[382700206,1756711863679,-480.0,0.00014557,2]
[382700207,1756711863688,-620.14,0.00014557,2]
[382700208,1756711863698,-2199.24,0.00014557,2]
[382700209,1756711863707,-480.0,0.00014557,2]
[382700210,1756711863717,-802.92,0.00014557,2]
[382700211,1756711863726,-4501.07,0.00014557,2]
[382700212,1756711863735,-151.0,0.00014557,2]
[382700213,1756711863744,-357.592728,0.00014557,2]
[382700214,1756711863754,-955.3,0.00014557,2]
[382700215,1756711863763,-357.592728,0.00014557,2]
[382700216,1756711863773,-151.0,0.00014557,2]
[382700217,1756711863782,-480.0,0.00014557,2]
[382700218,1756711863792,-357.592728,0.00014557,2]
[382700219,1756711863802,-480.0,0.00014557,2]
[382700220,1756711863811,-357.592726,0.00014557,2]
[382700221,1756711863822,-1283.75408,0.00014557,2]
[382700222,1756711863831,-480.0,0.00014557,2]
[382700223,1756711863841,-151.0,0.00014557,2]
[382700224,1756711863850,-151.0,0.00014557,2]
[382700225,1756711863859,-480.0,0.00014557,2]
[382700226,1756711863869,-151.0,0.00014557,2]
[382700227,1756711863878,-151.0,0.00014557,2]
[382700228,1756711863888,-151.0,0.00014557,2]
[382700229,1756711863898,-480.0,0.00014558,2]
[382700230,1756711863908,-712.12,0.00014558,2]
[382700231,1756711863918,-480.0,0.00014558,2]
[382700232,1756711863928,-737.3,0.00014558,2]
[382700233,1756711863938,-151.0,0.00014558,2]
[382700234,1756711863948,-480.0,0.00014558,2]
[382700235,1756711863957,-480.0,0.00014558,2]
[382700236,1756711863967,-604.66,0.00014558,2]
[382700237,1756711863977,-480.0,0.00014558,2]
[382700238,1756711863987,-480.0,0.00014558,2]
[382700239,1756711863996,-480.0,0.00014558,2]
[382700240,1756711864005,-480.0,0.00014558,2]
[382700241,1756711864015,-480.0,0.00014558,2]
[382700242,1756711864024,-512.05,0.00014558,2]
[382700243,1756711864034,-1012.67,0.00014558,2]
[382700244,1756711864044,-480.0,0.00014558,2]
[382700245,1756711864053,-480.0,0.00014558,2]
[382700246,1756711864062,-1046.18,0.00014558,2]
[382700247,1756711864072,-480.0,0.00014558,2]
[382700248,1756711864082,-844.16,0.00014558,2]
[382700249,1756711864091,-152.11578,0.00014558,2]
[382700250,1756711864101,-480.0,0.00014558,2]
[382700251,1756711864111,-480.0,0.00014558,2]
[382700252,1756711864121,-1034.37,0.00014558,2]
[382700253,1756711864131,-151.0,0.00014558,2]
[382700254,1756711864141,-151.0,0.00014558,2]
[382700255,1756711864151,-480.0,0.00014558,2]
[382700256,1756711864161,-482.55470668,0.00014558,2]
[382700257,1756711864170,-888.6,0.00014558,2]
[382700258,1756711864180,-480.0,0.00014558,2]
[382700259,1756711864189,-480.0,0.00014558,2]
[382700260,1756711864199,-480.0,0.00014558,2]
[382700261,1756711864208,-480.0,0.00014558,2]
[382700262,1756711864217,-151.0,0.00014558,2]
[382700263,1756711864227,-513.04,0.00014558,2]
[382700264,1756711864238,-191.593175,0.00014558,2]
[382700265,1756711864247,-191.593175,0.00014558,2]
[382700266,1756711864258,-191.593175,0.00014558,2]
[382700267,1756711864267,-191.593175,0.00014558,2]
[382700268,1756711864276,-151.0,0.00014558,2]
[382700269,1756711864286,-151.0,0.00014558,2]
[382700270,1756711864296,-151.0,0.00014558,2]
[382700271,1756711864305,-151.0,0.00014558,2]
[382700272,1756711864314,-895.59,0.00014558,2]
[382700273,1756711864324,-480.0,0.00014558,2]
[382700274,1756711864333,-480.0,0.00014558,2]
[382700275,1756711864343,-151.0,0.00014558,2]
[382700276,1756711864352,-923.7,0.00014558,2]
[382700277,1756711864361,-480.0,0.00014558,2]
[382700278,1756711864371,-151.0,0.00014558,2]
[382700279,1756711864380,-151.0,0.00014558,2]
[382700280,1756711864389,-768.53,0.00014558,2]
[382700281,1756711864398,-480.0,0.00014558,2]
[382700282,1756711864409,-1056.06,0.00014558,2]
[382700283,1756711864418,-151.0,0.00014558,2]
[382700284,1756711864427,-1110.22,0.00014558,2]
[382700285,1756711864436,-480.0,0.00014558,2]
[382700286,1756711864445,-480.0,0.00014558,2]
[382700287,1756711864454,-287.863363,0.00014558,2]
[382700288,1756711864463,-287.863363,0.00014558,2]
[382700289,1756711864473,-287.863363,0.00014558,2]
[382700290,1756711864483,-287.863355,0.00014558,2]
[382700291,1756711864493,-158.244102,0.00014558,2]
[382700292,1756711864502,-1464.7,0.00014558,2]
[382700293,1756711864511,-151.0,0.00014558,2]
[382700294,1756711864520,-158.244102,0.00014558,2]
[382700295,1756711864529,-158.244102,0.00014558,2]
[382700296,1756711864539,-158.244103,0.00014558,2]
[382700297,1756711864550,-626.24,0.00014558,2]
[382700298,1756711864704,-986.566383,0.00014558,2]
[382700299,1756711864714,-986.566383,0.00014558,2]
[382700300,1756711864723,-151.0,0.00014558,2]
[382700301,1756711864733,-986.566383,0.00014558,2]
[382700302,1756711864742,-151.0,0.00014558,2]
[382700303,1756711864751,-986.566379,0.00014558,2]
[382700304,1756711864761,-159.540892,0.00014558,2]
[382700305,1756711864770,-287.090103,0.00014558,2]
[382700306,1756711864780,-513.12,0.00014558,2]
[382700307,1756711864790,-287.090103,0.00014558,2]
[382700308,1756711864800,-270.606278,0.00014558,2]
[382700309,1756711864810,-287.090103,0.00014558,2]
[382700310,1756711864820,-287.090105,0.00014558,2]
[382700311,1756711864830,-270.606278,0.00014558,2]
[382700312,1756711864840,-270.606278,0.00014558,2]
[382700313,1756711864850,-270.606268,0.00014558,2]
[382700314,1756711864860,-480.0,0.00014558,2]
[382700315,1756711864870,-993.02,0.00014558,2]
[382700316,1756711864879,-520.29,0.00014558,2]
[382700317,1756711864888,-151.0,0.00014558,2]
[382700318,1756711864898,-151.0,0.00014558,2]
[382700319,1756711864909,-151.0,0.00014558,2]
[382700320,1756711864919,-485.45,0.00014558,2]
[382700321,1756711864928,-480.0,0.00014558,2]
[382700322,1756711864938,-480.0,0.00014558,2]
[382700323,1756711864948,-295.324123,0.00014558,2]
[382700324,1756711864957,-295.324123,0.00014558,2]
[382700325,1756711864966,-295.324123,0.00014558,2]
[382700326,1756711864975,-295.324126,0.00014558,2]
[382700327,1756711864984,-654.84,0.00014558,2]
[382700328,1756711864993,-933.92,0.00014559,2]
[382700329,1756711865003,-213.58266414,0.00014559,2]
[382700330,1756711865012,-480.0,0.00014559,2]
[382700331,1756711865021,-480.0,0.00014559,2]
[382700332,1756711865030,-152.368748,0.00014559,2]
[382700333,1756711865040,-480.0,0.00014559,2]
[382700334,1756711865049,-480.0,0.00014559,2]
[382700335,1756711865059,-480.0,0.00014559,2]
[382700336,1756711865069,-151.0,0.00014559,2]
[382700337,1756711865080,-596.1,0.00014559,2]
[382700338,1756711865090,-151.0,0.00014559,2]
[382700339,1756711865100,-151.0,0.00014559,2]
[382700340,1756711865109,-151.0,0.00014559,2]
[382700341,1756711865119,-480.0,0.00014559,2]
[382700342,1756711865128,-480.0,0.00014559,2]
[382700343,1756711865138,-495.83,0.00014559,2]
[382700344,1756711865147,-151.0,0.00014559,2]
[382700345,1756711865159,-151.0,0.00014559,2]
[382700346,1756711865168,-299.635904,0.00014559,2]
[382700347,1756711865178,-480.0,0.00014559,2]
[382700348,1756711865187,-498.6,0.00014559,2]
[382700349,1756711865196,-151.0,0.00014559,2]
[382700350,1756711865206,-480.0,0.00014559,2]
[382700351,1756711865217,-935.34,0.00014559,2]
[382700352,1756711865227,-156.210329,0.00014559,2]
[382700353,1756711865236,-480.0,0.00014559,2]
[382700354,1756711865246,-1586.01,0.00014559,2]
[382700355,1756711865256,-1586.01,0.00014559,2]
[382700356,1756711865266,-1586.01,0.00014559,2]
[382700357,1756711865277,-1586.01,0.00014559,2]
[382700358,1756711865286,-1586.19,0.00014559,2]
[382700359,1756711865295,-480.0,0.00014559,2]
[382700360,1756711865305,-480.0,0.00014559,2]
[382700361,1756711865316,-480.0,0.00014559,2]
[382700362,1756711865325,-480.0,0.00014559,2]
[382700363,1756711865336,-480.0,0.00014559,2]
[382700364,1756711865346,-480.0,0.00014559,2]
[382700365,1756711865355,-480.0,0.00014559,2]
[382700366,1756711865365,-885.8,0.00014559,2]
[382700367,1756711865374,-739.98,0.00014559,2]
[382700368,1756711865383,-184.362176,0.00014559,2]
[382700369,1756711865393,-184.362176,0.00014559,2]
[382700370,1756711865402,-184.362176,0.00014559,2]
[382700371,1756711865415,-184.362176,0.00014559,2]
[382700372,1756711865424,-161.357211,0.00014559,2]
[382700373,1756711865434,-161.357211,0.00014559,2]
[382700374,1756711865443,-161.357211,0.00014559,2]
[382700375,1756711865452,-161.357211,0.00014559,2]
[382700376,1756711865461,-151.0,0.00014559,2]
[382700377,1756711865471,-151.0,0.00014559,2]
[382700378,1756711865483,-767.31,0.00014559,2]
[382700379,1756711865492,-151.0,0.00014559,2]
[382700380,1756711865501,-480.0,0.00014559,2]
[382700381,1756711865511,-191.593175,0.00014559,2]
[382700382,1756711865521,-191.593175,0.00014559,2]
[382700383,1756711865530,-480.0,0.00014559,2]
[382700384,1756711865539,-191.593175,0.00014559,2]
[382700385,1756711865548,-191.593171,0.00014559,2]
[382700386,1756711865558,-151.0,0.00014559,2]
[382700387,1756711865568,-480.0,0.00014559,2]
[382700388,1756711865578,-151.0,0.00014559,2]
[382700389,1756711865587,-480.0,0.00014559,2]
[382700390,1756711865597,-151.0,0.00014559,2]
[382700391,1756711865606,-480.0,0.00014559,2]
[382700392,1756711865615,-900.46,0.00014559,2]
[382700393,1756711865624,-480.0,0.00014559,2]
[382700394,1756711865634,-151.0,0.00014559,2]
[382700395,1756711865644,-480.0,0.00014559,2]
[382700396,1756711865654,-977.83,0.00014559,2]
[382700397,1756711865668,-480.0,0.00014559,2]
[382700398,1756711865678,-480.0,0.00014559,2]
[382700399,1756711865687,-151.0,0.00014559,2]
[382700400,1756711865697,-480.0,0.00014559,2]
[382700401,1756711865706,-480.0,0.00014559,2]
[382700402,1756711865715,-480.0,0.00014559,2]
[382700403,1756711865725,-151.0,0.00014559,2]
[382700404,1756711865735,-151.0,0.00014559,2]
[382700405,1756711865744,-480.0,0.00014559,2]
[382700406,1756711865753,-480.0,0.00014559,2]
[382700407,1756711865763,-480.0,0.00014559,2]
[382700408,1756711865772,-480.0,0.00014559,2]
[382700409,1756711865782,-522.66,0.00014559,2]
[382700410,1756711865791,-151.0,0.00014559,2]
[382700411,1756711865801,-563.95,0.00014559,2]
[382700412,1756711865811,-480.0,0.00014559,2]
[382700413,1756711865820,-151.0,0.00014559,2]
[382700414,1756711865830,-151.0,0.00014559,2]
[382700415,1756711865839,-480.0,0.00014559,2]
[382700416,1756711865849,-495.84,0.00014559,2]
[382700417,1756711865858,-480.0,0.00014559,2]
[382700418,1756711865868,-508.16,0.00014559,2]
[382700419,1756711865877,-660.72,0.00014559,2]
[382700420,1756711865886,-510.12215721,0.00014559,2]
[382700421,1756711865895,-480.0,0.00014559,2]
[382700422,1756711865905,-151.0,0.00014559,2]
[382700423,1756711865917,-209.847823,0.00014559,2]
[382700424,1756711865926,-151.0,0.00014559,2]
[382700425,1756711865936,-209.847823,0.00014559,2]
[382700426,1756711865946,-209.847823,0.00014559,2]
[382700427,1756711865955,-209.847831,0.00014559,2]
[382700428,1756711865964,-695.36,0.00014559,2]
[382700429,1756711865974,-405.979357,0.00014559,2]
[382700430,1756711865983,-405.979357,0.00014559,2]
[382700431,1756711865992,-405.979357,0.00014559,2]
[382700432,1756711866002,-405.979355,0.00014559,2]
[382700433,1756711866011,-480.0,0.00014559,2]